Workbook

Sheet паспорт
A1: ПАТ "УКРТРАНСГАЗ" | G1: ПАСПОРТ ФІЗИКО-ХІМІЧНИХ ПОКАЗНИКІВ ПРИРОДНОГО ГАЗУ № 850 | Z1: Маршрут № 850
A2: Філія "УМГ "Черкаситрансгаз" | E2: переданого Олександрівським ЛВУМГ та прийнятого ПАТ "Миколаївгаз "; ПАТ"Одесагаз ";
A3: Південно-Бузький п/м Олександрівське ЛВУМГ | I3: ВАТ"Кіровоградгаз "; Кіровоград-2 ТОВ ТПЗ "ОіК"; Кіровоград-2 ТОВ "Антарктида-17 "
A4: Вимірювальна хіміко-аналітична лабораторія
A5: Свідоцтво № РН-0058/2015 чинно до 18.06.2020 р. | K5: по газопроводу "Кременчук-Ананьїв-Богородчани" | V5: за період з | X5: 2017-04-01 | Z5: по | AA5: 2017-04-30
A7: Число місяця | B7: Компонентний склад, % мол. | N7: Фізико-хімічні показники газу обчислені на основі компонентного складу, 101,325 кПа | X7: Температура точки роси за вологою (Р = 3.92 МПа), ºС | Y7: Температура точки роси за вуглеводнями, ºС | Z7: Вміст сірководню,г/м3 | AA7: Вміст меркаптанової сірки, г/м3 | AB7: Вміст механічних домішок, г/м3
N8: Густина абсолютна, кг/м3,при 20 ºС, | O8: Температура вимірювання/згоряння при 20/25°С
B9: метан, С1 | C9: етан, С2 | D9: пропан, С3 | E9: ізо-бутан, і-С4 | F9: н-бутан, н-С4 | G9: нео-пентан, нео-С5 | H9: ізо-пентан, і-С5 | I9: н-пентан, н-С5 | J9: гексани та вищі, С6+ | K9: кисень, О2 | L9: азот, N2 | M9: діоксид вуглецю, CО2 | O9: Теплота згоряння нижча | R9: Теплота згоряння вища | U9: Число Воббе вище
O10: ккал/м3 | P10: МДж/м3 | Q10: кВт⋅год/м3 | R10: ккал/м3 | S10: МДж/м3 | T10: кВт⋅год/м3 | U10: ккал/м3 | V10: МДж/м3 | W10: кВт⋅год/м3
A11: 1 | O11: 8245 | P11: 34.52 | Q11: =P11/3.6 -> 9.588888889 | R11: 9140 | S11: 38.27 | T11: =S11/3.6 -> 10.63055556 | AC11: =SUM(B11:M11)+$K$42+$N$42 -> 0
A12: 2 | O12: 8245 | P12: 34.52 | Q12: =P12/3.6 -> 9.588888889 | R12: 9140 | S12: 38.27 | T12: =S12/3.6 -> 10.63055556 | AC12: 0
A13: 3 | B13: 95.3608 | C13: 2.6039 | D13: 0.8263 | E13: 0.1312 | F13: 0.1271 | G13: 0.0039 | H13: 0.0233 | I13: 0.0157 | J13: 0.0049 | K13: 0.0086 | L13: 0.6476 | M13: 0.2466 | N13: 0.705 | O13: 8238 | P13: 34.49 | Q13: 9.580555556 | R13: 9133 | S13: 38.24 | T13: =S14/3.6 -> 10.61111111 | U13: 11937 | V13: 49.98 | W13: =V13/3.6 -> 13.88333333 | X13: -23.2 | AC13: 99.9999 | AD13: =IF(AC13=100,"ОК"," ") -> 
A14: 4 | B14: 95.4556 | C14: 2.5557 | D14: 0.7992 | E14: 0.1251 | F14: 0.1212 | G14: 0.004 | H14: 0.0222 | I14: 0.0152 | J14: 0.0048 | K14: 0.0088 | L14: 0.6504 | M14: 0.2379 | N14: 0.7041 | O14: 8229 | P14: 34.46 | Q14: 9.572222222 | R14: 9124 | S14: 38.2 | T14: 10.61111111 | U14: 11933 | V14: 49.96 | W14: =V14/3.6 -> 13.87777778 | X14: -23.5 | AC14: 100.0001 | AD14: =IF(AC14=100,"ОК"," ") -> 
A15: 5 | B15: 95.4483 | C15: 2.5627 | D15: 0.8056 | E15: 0.1248 | F15: 0.1207 | G15: 0.0044 | H15: 0.022 | I15: 0.0149 | J15: 0.0048 | K15: 0.0091 | L15: 0.6473 | M15: 0.2354 | N15: 0.7042 | O15: 8231 | P15: 34.46 | Q15: 9.49 | R15: 9125 | S15: 38.21 | T15: =S15/3.6 -> 10.61388889 | U15: 11935 | V15: 49.97 | W15: =V15/3.6 -> 13.88055556 | X15: -23.1 | AC15: 100 | AD15: ОК
A16: 6 | B16: 95.5442 | C16: 2.5039 | D16: 0.7891 | E16: 0.1242 | F16: 0.12 | G16: 0.0033 | H16: 0.0222 | I16: 0.0153 | J16: 0.0048 | K16: 0.0087 | L16: 0.6344 | M16: 0.23 | N16: 0.7034 | O16: 8226 | P16: 34.44 | Q16: 9.566666667 | R16: 9121 | S16: 38.19 | T16: 10.60833333 | U16: 11934 | V16: 49.97 | W16: =V16/3.6 -> 13.88055556 | X16: -22.7 | AC16: 100.0001
A17: 7 | B17: 95.4506 | C17: 2.5605 | D17: 0.8079 | E17: 0.1279 | F17: 0.1239 | G17: 0.0039 | H17: 0.023 | I17: 0.0155 | J17: 0.0048 | K17: 0.0089 | L17: 0.6307 | M17: 0.2424 | N17: 0.7043 | O17: 8233 | P17: 34.47 | Q17: 9.575 | R17: 9128 | S17: 38.22 | T17: 10.61666667 | U17: 11937 | V17: 49.98 | W17: =V17/3.6 -> 13.88333333 | X17: -22.9 | AC17: 100 | AD17: ОК
A18: 8 | O18: 8233 | P18: 34.47 | Q18: 9.575 | R18: 9128 | S18: 38.22 | T18: 10.61666667 | AC18: 0
A19: 9 | O19: 8233 | P19: 34.47 | Q19: 9.575 | R19: 9128 | S19: 38.22 | T19: 10.61666667 | AC19: 0
A20: 10 | B20: 95.4296 | C20: 2.5694 | D20: 0.8039 | E20: 0.1254 | F20: 0.1204 | G20: 0.0027 | H20: 0.021 | I20: 0.0142 | J20: 0.0048 | K20: 0.0103 | L20: 0.6532 | M20: 0.2452 | N20: 0.7042 | O20: 8229 | P20: 34.45 | Q20: =P20/3.6 -> 9.569444444 | R20: 9123 | S20: 38.2 | T20: =S20/3.6 -> 10.61111111 | U20: 11931 | V20: 49.95 | W20: =V20/3.6 -> 13.875 | X20: -23.4 | AC20: 100.0001
A21: 11 | B21: 95.5836 | C21: 2.4742 | D21: 0.7823 | E21: 0.1234 | F21: 0.1195 | G21: 0.0028 | H21: 0.0219 | I21: 0.0144 | J21: 0.0051 | K21: 0.0095 | L21: 0.6335 | M21: 0.2298 | N21: 0.7031 | O21: 8223 | P21: 34.43 | Q21: 9.563888889 | R21: 9117 | S21: 38.17 | T21: 10.60277778 | U21: 11933 | V21: 49.96 | W21: 13.87777778 | X21: -22.7 | AC21: 100 | AD21: ОК
A22: 12 | B22: 95.606 | C22: 2.4578 | D22: 0.7778 | E22: 0.1224 | F22: 0.1179 | G22: 0.0032 | H22: 0.0217 | I22: 0.0143 | J22: 0.005 | K22: 0.01 | L22: 0.6369 | M22: 0.2271 | N22: 0.7029 | O22: 8221 | P22: 34.42 | Q22: 9.561111111 | R22: 9115 | S22: 38.16 | T22: 10.6 | U22: 11931 | V22: 49.95 | W22: 13.875 | X22: -23.7 | AC22: 100.0001
A23: 13 | B23: 95.5905 | C23: 2.4674 | D23: 0.7821 | E23: 0.1224 | F23: 0.1186 | G23: 0.0043 | H23: 0.0224 | I23: 0.0149 | J23: 0.0051 | K23: 0.0087 | L23: 0.6265 | M23: 0.2371 | N23: 0.7032 | O23: 8223 | P23: 34.43 | Q23: 9.563888889 | R23: 9117 | S23: 38.17 | T23: 10.60277778 | U23: 11932 | V23: 49.96 | W23: 13.87777778 | X23: -24.3 | AC23: 100 | AD23: ОК
A24: 14 | B24: 95.6387 | C24: 2.4405 | D24: 0.7729 | E24: 0.1211 | F24: 0.1165 | G24: 0.0041 | H24: 0.0212 | I24: 0.0139 | J24: 0.0048 | K24: 0.0096 | L24: 0.6255 | M24: 0.2312 | N24: 0.7027 | O24: 8219 | P24: 34.41 | Q24: 9.558333333 | R24: 9113 | S24: 38.15 | T24: 10.59722222 | U24: 11931 | V24: 49.95 | W24: 13.875 | X24: -24.1 | AC24: 100 | AD24: ОК
A25: 15 | O25: 8219 | P25: 34.41 | Q25: =P25/3.6 -> 9.558333333 | R25: 9113 | S25: 38.15 | T25: 10.59722222 | AC25: 0
A26: 16 | O26: 8219 | P26: 34.41 | Q26: =P26/3.6 -> 9.558333333 | R26: 9113 | S26: 38.15 | T26: =S26/3.6 -> 10.59722222 | AC26: 0
A27: 17 | O27: 8219 | P27: 34.41 | Q27: 9.558333333 | R27: 9113 | S27: 38.15 | T27: 10.59722222 | AC27: 0
A28: 18 | B28: 95.3631 | C28: 2.6028 | D28: 0.8198 | E28: 0.1272 | F28: 0.1228 | G28: 0.0023 | H28: 0.0221 | I28: 0.0146 | J28: 0.0051 | K28: 0.0095 | L28: 0.64 | M28: 0.2706 | N28: 0.705 | O28: 8233 | P28: 34.47 | Q28: =P28/3.6 -> 9.575 | R28: 9128 | S28: 38.22 | T28: 10.61666667 | U28: 11931 | V28: 49.95 | W28: =V28/3.6 -> 13.875 | X28: -24 | AC28: 99.9999
A29: 19 | B29: 95.4452 | C29: 2.5521 | D29: 0.8089 | E29: 0.1264 | F29: 0.1213 | G29: 0.003 | H29: 0.0225 | I29: 0.0151 | J29: 0.005 | K29: 0.0091 | L29: 0.6364 | M29: 0.255 | N29: 0.7043 | O29: 8230 | P29: 34.46 | Q29: =P29/3.6 -> 9.572222222 | R29: 9125 | S29: 38.2 | T29: 10.61111111 | U29: 11932 | V29: 49.96 | W29: 13.87777778 | X29: -24 | AC29: 100 | AD29: ОК
A30: 20 | B30: 95.4749 | C30: 2.5263 | D30: 0.8023 | E30: 0.1259 | F30: 0.1215 | G30: 0.002 | H30: 0.0225 | I30: 0.015 | J30: 0.005 | K30: 0.0094 | L30: 0.6425 | M30: 0.2529 | N30: 0.7041 | O30: 8227 | P30: 34.45 | Q30: 9.569444444 | R30: 9121 | S30: 38.19 | T30: 10.60833333 | U30: 11930 | V30: 49.95 | W30: 13.875 | X30: -24.3 | AC30: 100.0002 | AD30: =IF(AC30=100,"ОК"," ") -> 
A31: 21 | B31: 95.2606 | C31: 2.661 | D31: 0.8473 | E31: 0.1322 | F31: 0.1272 | G31: 0.0027 | H31: 0.0239 | I31: 0.0158 | J31: 0.0051 | K31: 0.0086 | L31: 0.6239 | M31: 0.2918 | N31: 0.706 | O31: 8243 | P31: 34.51 | Q31: 9.586111111 | R31: 9138 | S31: 38.26 | T31: 10.62777778 | U31: 11935 | V31: 49.97 | W31: 13.88055556 | X31: -23.6 | AC31: 100.0001
A32: 22 | O32: 8243 | P32: 34.51 | Q32: 9.586111111 | R32: 9138 | S32: 38.26 | T32: 10.62777778 | AC32: 0
A33: 23 | O33: 8243 | P33: 34.51 | Q33: =P33/3.6 -> 9.586111111 | R33: 9138 | S33: 38.26 | T33: =S33/3.6 -> 10.62777778 | AC33: 0 | AD33: =IF(AC33=100,"ОК"," ") -> 
A34: 24 | B34: 95.3612 | C34: 2.5901 | D34: 0.8218 | E34: 0.1306 | F34: 0.1266 | G34: 0.003 | H34: 0.0237 | I34: 0.0157 | J34: 0.0051 | K34: 0.0091 | L34: 0.6402 | M34: 0.2727 | N34: 0.7051 | O34: 8235 | P34: 34.48 | Q34: 9.577777778 | R34: 9130 | S34: 38.22 | T34: 10.61666667 | U34: 11932 | V34: 49.96 | W34: 13.87777778 | X34: -23.3 | Z34: 0 | AA34: 0 | AB34: 0 | AC34: 99.9998
A35: 25 | B35: 95.4096 | C35: 2.5614 | D35: 0.8078 | E35: 0.1277 | F35: 0.1234 | G35: 0.003 | H35: 0.0229 | I35: 0.0153 | J35: 0.0051 | K35: 0.0092 | L35: 0.6449 | M35: 0.2698 | N35: 0.7047 | O35: 8230 | P35: 34.46 | Q35: 9.572222222 | R35: 9124 | S35: 38.2 | T35: 10.61111111 | U35: 11929 | V35: 49.94 | W35: =V35/3.6 -> 13.87222222 | X35: -17.1 | AC35: 100.0001
A36: 26 | B36: 95.3376 | C36: 2.6045 | D36: 0.8224 | E36: 0.1307 | F36: 0.1262 | G36: 0.0034 | H36: 0.0231 | I36: 0.0154 | J36: 0.005 | K36: 0.0094 | L36: 0.6469 | M36: 0.2754 | N36: 0.7053 | O36: 8235 | P36: 34.48 | Q36: 9.577777778 | R36: 9130 | S36: 38.22 | T36: =S36/3.6 -> 10.61666667 | U36: 11931 | V36: 49.95 | W36: =V36/3.6 -> 13.875 | X36: -19.9 | AC36: 100 | AD36: ОК
A37: 27 | B37: 95.2439 | C37: 2.6629 | D37: 0.8442 | E37: 0.1338 | F37: 0.1295 | G37: 0.003 | H37: 0.0236 | I37: 0.0159 | J37: 0.0051 | K37: 0.0095 | L37: 0.6479 | M37: 0.2807 | N37: 0.7061 | O37: 8242 | P37: 34.51 | Q37: 9.586111111 | R37: 9137 | S37: 38.26 | T37: 10.62777778 | U37: 11934 | V37: 49.96 | W37: =V37/3.6 -> 13.87777778 | X37: -23.5 | AC37: 100 | AD37: ОК
A38: 28 | B38: 95.2128 | C38: 2.6815 | D38: 0.8518 | E38: 0.1344 | F38: 0.13 | G38: 0.0028 | H38: 0.0243 | I38: 0.0161 | J38: 0.0048 | K38: 0.0086 | L38: 0.6401 | M38: 0.2927 | N38: 0.7064 | O38: 8244 | P38: 34.52 | Q38: 9.588888889 | R38: 9139 | S38: 38.27 | T38: 10.63055556 | U38: 11934 | V38: 49.97 | W38: =V38/3.6 -> 13.88055556 | X38: -23.8 | AC38: 99.9999
A39: 29 | O39: 8244 | P39: 34.52 | Q39: 9.588888889 | R39: 9139 | S39: 38.27 | T39: 10.63055556 | AC39: 0
A40: 30 | O40: 8244 | P40: 34.52 | Q40: 9.588888889 | R40: 9139 | S40: 38.27 | T40: 10.63055556 | AC40: 0
A41: 31 | AC41: 0
A42: Рівень одоризації відповідає чинним нормативним документам | O42: 8232.698427 | P42: 34.46923902 | Q42: 9.572799553 | R42: 9127.340254 | S42: 38.21483757 | T42: 10.61495494
H43: Середньозважене значення теплоти згоряння:
B45: Начальник управління Олександрівського ЛВУМГ Сурін М.А. 30.04.2017 р.
C46: Підрозділу підприємства, якому підпорядкована лабораторія | O46: прізвище | T46: підпис | Y46: дата
B47: Начальник лабораторії Волкова С.Т. 30.04.2017р.
C48: Лабораторія, де здійснювалось вимірювання газу | O48: прізвище | T48: підпис | Y48: дата
B49: Інженер 1 категорії групи метрології САВ і ТМ Мартьянов А.М. 30.04.2017р.
B50: Підрозділ, відповідального за облік газу за маршрутом | O50: прізвище | T50: підпис | Y50: дата

Sheet variablesList (hidden)
A1: 3 | B1: x:\gaysin | C1: 10, 11, 24, 25, 127, 128, 132, 180, 207, 215 | D1: x:\
B2: x:\Illinci
B3: x:\Talne

Sheet додат вища тепл згор
A1: Додаток до Паспорту фізико-хімічних показників природного газу № 850
A2: Область | B2: ГРС, прямий споживач | C2: Середньозважене значення вищої теплоти згорання
C3: МДж/м³ | D3: ккал/м³ | E3: кВт*год/м³
A4: Миколаївськ область | B4: ГРС Первомайськ | C4: 38.21 | D4: =C4*238.8459 -> 9126.301839 | E4: =C4/3.6 -> 10.61388889
B5: ГРС Острогірське | C5: 38.21 | D5: =C5*238.8459 -> 9126.301839 | E5: =C5/3.6 -> 10.61388889
B6: ГРС Братське | C6: 38.21 | D6: =C6*238.8459 -> 9126.301839 | E6: =C6/3.6 -> 10.61388889
B7: ГРС Вознесенськ | C7: 38.21 | D7: 9126.301839 | E7: =C7/3.6 -> 10.61388889
B8: ГРС Прибужжя | C8: 38.21 | D8: 9126.301839 | E8: =C8/3.6 -> 10.61388889
B9: ГРС Врадіївка | C9: 38.21 | D9: 9126.301839 | E9: 10.61388889
B10: ГРС Арбузинка | C10: 38.21 | D10: 9126.301839 | E10: 10.61388889
B11: ГРС Миролюбівка | C11: 38.21 | D11: 9126.301839 | E11: 10.61388889
B12: ГРС Доманівка | C12: 38.21 | D12: 9126.301839 | E12: 10.61388889
B13: ГРС Кримка | C13: 38.21 | D13: 9126.301839 | E13: 10.61388889
A14: Одеська область | B14: ГРС Любашівка | C14: 38.21 | D14: 9126.301839 | E14: 10.61388889
B15: ГРС Троїцьке | C15: 38.21 | D15: 9126.301839 | E15: 10.61388889
A16: Кіровоградська область | B16: ГРС-2 Кіровоград | C16: 38.21 | D16: 9126.301839 | E16: 10.61388889
B17: АГНКС ТОВ ТПЗ "ОіК" | C17: 38.21 | D17: 9126.301839 | E17: 10.61388889
B18: АГНКС ТОВ " Антарктида-17" | C18: 38.21 | D18: 9126.301839 | E18: 10.61388889
B19: ГРС Калинівка | C19: 38.21 | D19: 9126.301839 | E19: 10.61388889
B20: ГРС Бобринець | C20: 38.21 | D20: 9126.301839 | E20: 10.61388889
B21: ГРСНовоградівка | C21: 38.21 | D21: 9126.301839 | E21: 10.61388889
B22: ГРС Копаніївка | C22: 38.21 | D22: 9126.301839 | E22: 10.61388889
B23: ГРС Софіївка | C23: 38.21 | D23: 9126.301839 | E23: 10.61388889
B24: ГРС Витязівка | C24: 38.21 | D24: 9126.301839 | E24: 10.61388889
B25: ГРС Марівка | C25: 38.21 | D25: =C25*238.8459 -> 9126.301839 | E25: 10.61388889
B26: ГРС Новгородка | C26: 38.21 | D26: 9126.301839 | E26: 10.61388889
B27: ГРС Іванівка | C27: 38.21 | D27: 9126.301839 | E27: 10.61388889
B28: ГРС Червоний ЯР | C28: 38.21 | D28: 9126.301839 | E28: 10.61388889
B29: ГРС Мошорине | C29: 38.21 | D29: 9126.301839 | E29: 10.61388889
A30: Середньозважене значення вищої теплоти згорання по маршруту № 850 | C30: 38.21 | D30: 9126.301839 | E30: =C30/3.6 -> 10.61388889
A33: Начальник управління Олександрівського ЛВУМГ Сурін М.А. 30.04.2017 р.
A34: Підрозділу підприємства, якому підпорядкована лабораторія | C34: прізвище | D34: підпис | E34: дата
A35: Начальник лабораторії Волкова С.Т. 30.04.2017р.
A36: Лабораторія, де здійснювалось вимірювання газу | C36: прізвище | D36: підпис | E36: дата
A37: Інженер 1 категорії групи метрології САВ і ТМ Мартьянов А.М. 30.04.2017р.
A38: Підрозділ, відповідального за облік газу за маршрутом | C38: прізвище | D38: підпис | E38: дата
